Cogmind - Beta 15 @@@ ROGUE MODE // 2025.08.28 @ 19:50:17 Player: ID-34L Result: Destroyed by 23-WUU(R) with Subdweller Beam Cannon Performance ------------- Evolutions (0) 0 Regions Visited (2) 400 Robots Destroyed (27) 135 Value Destroyed (587) 587 Prototype IDs (4) 80 Alien Tech Used (0) 0 Bonus (0) 0 TOTAL SCORE: 1202 Bonus ------- None Cogmind --------- Core Integrity 0/250 Matter 228/300 Energy 122/125 System Corruption 0% Temperature Cool (9) Movement Treading (160) Location -10/Subcaves Parts ------- > --- POWER (1) -------- Light Ion Engine > --- PROPULSION (2) --- Light Treads > --- UTILITY (2) ------ Medium Storage Unit > --- WEAPON (2) ------- Beam Cannon Light Cannon > --- INVENTORY (10) --- Small Storage Unit High-capacity Matter Pod (200) Authchip [R/Combat] Authchip [Device] Authchip [Weapon] Light Cannon Light Cannon Peak State ------------ > --- POWER ------------ Ion Engine > --- PROPULSION ------- Light Treads Light Treads > --- UTILITY ---------- Medium Storage Unit Propulsion Shielding > --- WEAPON ----------- Beam Cannon Light Cannon > --- INVENTORY -------- Light Ion Engine Small Storage Unit High-capacity Matter Pod Scrap Shield Authchip [R/Combat] Authchip [Device] Authchip [Weapon] Light Cannon Light Cannon [Rating: 9] Favorites ----------- Power Ion Engine Engine Ion Engine Propulsion Light Treads Treads Light Treads Wheel Compact Wheel Utility Medium Storage Unit Device ECM Suite Storage Medium Storage Unit Protection Propulsion Shielding Weapon Light Cannon Energy Gun EM Pulse Gun Energy Cannon Beam Cannon Ballistic Cannon Light Cannon Launcher Grenade Launcher Build | -11 -10 -10 ------- Run | Yrd Mat Sub Slots Evolved . | . . . Power . | . . . Propulsion . | . . . Utility . | . . . Weapon . | . . . Parts Attached 22 | 4 14 4 Power 5 | 1 2 2 Engine 5 | 1 2 2 Core . | . . . Reactor . | . . . Propulsion 5 | 2 3 . Treads 3 | 2 1 . Leg . | . . . Wheel 2 | . 2 . Hover . | . . . Flight . | . . . Utility 4 | 1 2 1 Device 1 | . 1 . Storage 2 | 1 1 . Processor . | . . . Hackware . | . . . Protection 1 | . . 1 Artifact . | . . . Weapon 8 | . 7 1 Energy Gun 4 | . 4 . Energy Cannon 1 | . . 1 Ballistic Gun . | . . . Ballistic Cannon 2 | . 2 . Launcher 1 | . 1 . Special Weapon . | . . . Impact Weapon . | . . . Slashing Weapon . | . . . Piercing Weapon . | . . . Special Melee Weapon . | . . . Unidentified Prototypes . | . . . Parts Lost 12 | . 7 5 Power 3 | . 1 2 Propulsion 2 | . 1 1 Utility 2 | . . 2 Weapon 5 | . 5 . Highest Loss Streak 4 | . 4 3 To Critical Strikes . | . . . Average Backups 7 | 4 7 9 Power 1 | . 1 1 Propulsion 1 | 2 1 . Utility 3 | . 2 5 Weapon 1 | 1 1 2 Tool/Special . | . . . Unused Backups 10 | . 3 7 Power 2 | . 2 . Propulsion . | . . . Utility 6 | . . 6 Weapon 2 | . 1 1 Tool/Special . | . . . Average Slot Usage (%) 88 | . 85 95 Engine 13 | . 13 13 Treads 19 | . 15 28 Wheel 8 | . 12 . Device 7 | . 8 6 Storage 14 | . 14 14 Protection 1 | . . 4 Energy Gun 3 | . 5 . Energy Cannon 2 | . . 7 Ballistic Cannon 15 | . 13 20 Launcher 1 | . 1 . Peak Build Rating 9 | 4 8 9 Average Rating 6 | 3 6 7 On Entrance 4 | . 4 8 Naked Turns . | . . . Heaviest Build 23 | 8 23 23 Greatest Support 40 | 40 40 40 Greatest Overweight (x) . | . . . Average Overweight (x) . | . . . Largest Inventory Capacity 10 | 8 10 10 Average Capacity 9 | 7 9 10 Most Carried 10 | 6 10 10 Average Carried 7 | 4 7 9 Final Capacity 10 | 8 10 10 Final Carried 10 | 6 10 7 Class Distribution -------------------- 100% | Mutant Dominant Class ---------------- Mutant | -10/Materials Mutant | -10/Subcaves Resources | -11 -10 -10 ----------- Run | Yrd Mat Sub Matter Collected 763 | 157 443 163 Remotely . | . . . Salvage Created 624 | . 533 91 Parts 59 | . 51 8 Haulers Intercepted 2 | . 2 . Recyclers Shooed 1 | . 1 . Parts Field Recycled . | . . . Retrieved Matter . | . . . Parts Self-Destructed 5 | . . 5 Prevented . | . . . Kills | -11 -10 -10 ------- Run | Yrd Mat Sub Combat Hostiles Destroyed 20 | . 18 2 Guns 8 | . 8 . Cannons 8 | . 6 2 AOE 4 | . 4 . Classes Destroyed 7 | . 6 1 Worker 1 | . 1 . Builder 1 | . 1 . Hauler 2 | . 2 . Watcher 3 | . 3 . Swarmer 9 | . 9 . Grunt 9 | . 9 . Subdweller 2 | . . 2 Best Kill Streak 6 | . 6 1 Combat Bots Only 5 | . 5 1 Max Kills in Single Turn 3 | . 3 1 Gunslinging . | . . . Exploded 2 | . 2 . Melee . | . . . Uniques/NPCs Destroyed . | . . . Combat | -11 -10 -10 -------- Run | Yrd Mat Sub Hostile Shots Fired 169 | . 119 50 Missed 51 | . 33 18 Hits 118 | . 86 32 Projectile 118 | . 86 32 Critical Strikes 1 | . . 1 Actively Blocked 1 | . . 1 Damage Taken 1753 | . 1026 727 Core 266 | . 171 95 Absorbed by Shields . | . . . Redirected to Shielding 52 | . . 52 Regen/Repaired (Parts) 126 | . 126 . Core Remaining (%) 100 | 100 . . Volleys Fired 63 | . 46 17 Largest 2 | . 2 2 Hottest 90 | . 80 90 Shots Fired 109 | . 75 34 Gun 36 | . 36 . Cannon 67 | . 33 34 Launcher 6 | . 6 . Special . | . . . Kinetic 57 | . 33 24 Thermal 20 | . 10 10 Explosive 6 | . 6 . Electromagnetic 26 | . 26 . Robot Hit Streak 13 | . 7 13 Robot Miss Streak 5 | . 5 2 Penetration Max . | . . . Secondary Targets . | . . . Shots Hit Robots 58 | . 35 23 Core Hits 41 | . 35 6 Critical Kills . | . . . Critical Parts Destroyed . | . . . Critical Strikes . | . . . Melee Attacks . | . . . Impact . | . . . Slashing . | . . . Piercing . | . . . Sneak Attacks . | . . . Combat Hostiles . | . . . Follow-up Attacks . | . . . Damage Inflicted 1429 | . 1015 414 Guns 254 | . 254 . Cannons 730 | . 316 414 Explosions 424 | . 424 . Melee . | . . . Ramming 21 | . 21 . Kinetic 607 | . 316 291 Thermal 189 | . 66 123 Explosive 424 | . 424 . Electromagnetic 188 | . 188 . Impact . | . . . Slashing . | . . . Piercing . | . . . Highest Corruption . | . . . Average Corruption . | . . . Corruption Purged . | . . . Corruption Blocked . | . . . Overload Shots . | . . . Overflow Damage 1 | . 1 . Projectiles . | . . . Explosions 1 | . 1 . Melee . | . . . Knockbacks 7 | . 2 5 Impact 1 | . 1 . Kinetic 6 | . 1 5 Secondary . | . . . Self-Inflicted Damage 70 | . 70 . Shots 3 | . 3 . Rammed 5 | . 5 . Targets Rammed 5 | . 5 . Kicked . | . . . Crushed . | . . . Highest Temperature 124 | . 124 . Average Temperature 42 | . 42 . Received Heat Transfer 567 | . 384 183 Siege Activations . | . . . Martial Activations . | . . . Shielding Activations . | . . . Robots Disrupted . | . . . Combat Hostiles . | . . . Robots Corrupted . | . . . Combat Hostiles . | . . . Parts Fried . | . . . Impact Corruptions . | . . . Robots Melted . | . . . Combat Hostiles . | . . . Parts Melted . | . . . Heat Transferred 409 | . 150 259 Parts Sabotaged . | . . . Parts Stolen . | . . . Parts Stripped . | . . . Power Chain Reactions . | . . . Alert | -11 -10 -10 ------- Run | Yrd Mat Sub Maximum Alert Level 1 | . 1 . Low Security (%) 95 | 100 94 . Level 1 4 | . 5 . Level 2 . | . . . Level 3 . | . . . Level 4 . | . . . Level 5 . | . . . High Security . | . . . Max Security . | . . . Peak Influence 216 | . 216 . Initial . | . . . Average 107 | . 115 . Influence Increases 594 | . 594 . Destroy 0b10 Robot/C 360 | . 360 . Destroy 0b10 Robot/NC 35 | . 35 . Destroy Leader 70 | . 70 . Successful Hack 43 | . 43 . Disable Machine 60 | . 60 . Destroy Structure 11 | . 11 . Lose Combat Pursuer 15 | . 15 . Influence Decreases 594 | . 419 175 Entered New Map 85 | . . 85 Time Decay 439 | . 349 90 Lost Part 70 | . 70 . Squads Dispatched 2 | . 2 . Investigation 2 | . 2 . Extermination . | . . . Reinforcement . | . . . Assault . | . . . Garrison . | . . . Intercept . | . . . Searches Triggered . | . . . Construction Impeded . | . . . Haulers Reinforced . | . . . Active Scanning Responses . | . . . Cargo Convoy Interrupts . | . . . Stealth | -11 -10 -10 --------- Run | Yrd Mat Sub Distress Signals 3 | . 3 . Communications Jammed . | . . . Distress Signals . | . . . Times Spotted 48 | . 37 11 Peak Tracking Total 8 | . 8 8 Tactical Retreats 6 | . 6 . Traps | -11 -10 -10 ------- Run | Yrd Mat Sub Traps Triggered 2 | . 2 . Indirectly . | . . . Trap Hack Attempts . | . . . Triggered . | . . . Disarmed . | . . . Reprogrammed . | . . . Reused . | . . . Traps Extracted . | . . . Installed . | . . . Triggered . | . . . Machines | -11 -10 -10 ---------- Run | Yrd Mat Sub Machines Disabled 4 | . 4 . Max in Single Turn 2 | . 2 . Machines Repaired . | . . . Machines Dismantled . | . . . Machines Sabotaged . | . . . Overloaded Fab Kills . | . . . Hacking | -11 -10 -10 --------- Run | Yrd Mat Sub Machines Accessed 11 | . 11 . Terminals 8 | . 8 . Fabricators . | . . . Repair Stations 1 | . 1 . Recycling Units 2 | . 2 . Scanalyzers . | . . . Garrison Access . | . . . Total Hacks 31 | . 31 . Successful 18 | . 18 . Failed 13 | . 13 . Catastrophic 3 | . 3 . Database Lockouts . | . . . Manual . | . . . Terminals 26 | . 26 . Fabricators . | . . . Repair Stations 2 | . 2 . Recycling Units 3 | . 3 . Scanalyzers . | . . . Garrison Access . | . . . Terminal Hacks 14 | . 14 . Prototype ID Bank 2 | . 2 . Level Access Points 1 | . 1 . Branch Access Points 1 | . 1 . Emergency Access Points 1 | . 1 . Terminal Index 1 | . 1 . Locate Traps 2 | . 2 . Surveillance Status 1 | . 1 . Hauler Manifests 2 | . 2 . Registered Components 1 | . 1 . Zone Layout 2 | . 2 . Fabricator Hacks . | . . . Repair Station Hacks 2 | . 2 . Scan Component 1 | . 1 . Repair 1 | . 1 . Recycling Unit Hacks 2 | . 2 . Report Inventory 2 | . 2 . Scanalyzer . | . . . Garrison Access Hacks . | . . . Unauthorized Hacks . | . . . Terminals . | . . . Fabricators . | . . . Repair Stations . | . . . Recycling Units . | . . . Scanalyzers . | . . . Garrison Access . | . . . Data Cores Recovered . | . . . Used . | . . . Hacking Detections 7 | . 7 . Full Trace Events 4 | . 4 . Feedback Events . | . . . Feedback Blocked . | . . . Robot Schematics Acquired . | . . . Robots Built . | . . . Authchips . | . . . Time . | . . . Total Robot Build Rating . | . . . Part Schematics Acquired . | . . . Parts Built . | . . . Authchips . | . . . Time . | . . . Total Part Build Rating . | . . . Parts Repaired 1 | . 1 . Time 26 | . 26 . Parts Recycled . | . . . Recycled Matter . | . . . Retrieved Matter . | . . . Retrieved Components . | . . . Parts Scanalyzed . | . . . Part Schematics Acquired . | . . . Parts Damaged . | . . . Bothacking | -11 -10 -10 ------------ Run | Yrd Mat Sub Used RIF Installer . | . . . Robots Hacked . | . . . Non-combat . | . . . Combat . | . . . Robot Hacks Applied . | . . . Relay Couplers Released . | . . . Fabnet Peak Effective % . | . . . Robots Rewired . | . . . Allies Hacked . | . . . Hacks Repelled . | . . . Allies | -11 -10 -10 -------- Run | Yrd Mat Sub Total Allies . | . . . Largest Group . | . . . Highest-Rated Group . | . . . Highest-Rated Ally . | . . . Total Orders . | . . . Ally Attacks . | . . . Total Damage . | . . . Kills . | . . . Allies Corrupted . | . . . Allies Melted . | . . . Intel | -11 -10 -10 ------- Run | Yrd Mat Sub Active Infowar (turns) 883 | . 666 217 ECM 883 | . 666 217 Robot Analysis Total . | . . . Derelict Logs Recovered 1 | . . 1 Drone Launches . | . . . Drone Recoveries . | . . . Exploration | -11 -10 -10 ------------- Run | Yrd Mat Sub Turns Passed 1665 | 79 1110 476 Spaces Moved 1042 | 48 737 257 Core 10 | 10 . . Treads 618 | 38 323 257 Legs . | . . . Wheels 414 | . 414 . Hover . | . . . Flight . | . . . Fastest Speed 50 | 50 90 160 Average Speed 131 | 137 120 160 Slowest Speed 160 | 160 160 160 Overloaded Moves . | . . . Propulsion Burnouts . | . . . Robots Hopped . | . . . Potential Cave-ins . | . . . Cave-ins Triggered . | . . . Exploration Rate (%) 38 | 4 95 15 Regions Visited 2 Branch Regions 1 Pre-discovered Areas 1 | . . 1 Known Exits Taken . | . . . Unknown Exits Taken 2 | 1 1 . Scrap Searched . | . . . Spaces Dug . | . . . Terrain Destroyed 12 | . 12 . Melee . | . . . Projectile . | . . . AOE 12 | . 12 . Terrain Rammed . | . . . Walls Destroyed . | . . . Machines Disabled . | . . . Actions | -11 -10 -10 --------- Run | Yrd Mat Sub Total 1232 | 61 883 288 Wait 59 | . 54 5 Move 1040 | 47 736 257 Hop . | . . . Pick Up 33 | 10 21 2 Fast Attach 1 | . . 1 Attach 16 | 4 10 2 Detach . | . . . Swap 6 | . 5 1 Drop 9 | . 6 3 Fire 63 | . 46 17 Melee . | . . . Ram 3 | . 3 . Kick . | . . . Crush 2 | . 2 . Escape Stasis . | . . . Rewire . | . . . Trap . | . . . Miscellaneous . | . . . Route ------- -11/Scrapyard -10/Materials (discovered 6 exits: *Mat x3 / *Min x2 / [*Sub]) -10/Subcaves History --------- Turn | Location | Event 9 | -11/Scrapyard | Discovered new exit (range 14) 80 | -11/Scrapyard | Entered Materials 116 | -10/Materials | Identified exit to Mines 309 | -10/Materials | Build established: Mutant 398 | -10/Materials | Lost 4 parts (1p1n2w) 416 | -10/Materials | Discovered new exit (range 15) 417 | -10/Materials | Identified exit to Materials 572 | -10/Materials | Repaired Lgt. Treads? 851 | -10/Materials | Core integrity fell below 50% 1179 | -10/Materials | Discovered new exit (range 8) 1190 | -10/Materials | Entered Subcaves 1361 | -10/Subcaves | Ambushed by swarm of Subdwellers 1429 | -10/Subcaves | Lost 4 allies 1586 | -10/Subcaves | Learned location of Recycling (-8) 1647 | -10/Subcaves | Core integrity fell below 20% 1666 | -10/Subcaves | Destroyed by 23-WUU(R) with Subdweller Beam Cannon Last Messages --------------- Sink. 01407_ ECM Suite destroyed. 01422_ AN-KPW(R) destroyed. 01424_ 20-KAW(O) collects matter. 01432_ 20-KAW(O) puts together Sub. Monowheel. 01471_ Acquired 15 matter. 01524_ Dropped Propulsion Shielding. 01524_ Acquired Scrap Shield. 01527_ Acquired Propulsion Shielding. 01528_ Dropped Scrap Shield. 01529_ Acquired Scrap Shield. 01530_ Dropped Scrap Shield. 01583_ Acquired 15 matter. 01586_ Acquired derelict log, extracted data. World map updated: -8/Recycling. 01588_ Acquired 9 matter. 01644_ L4-I7T(R) knocked back. 01656_ Ion Engine destroyed. 01661_ Propulsion Shielding destroyed. 01661_ Lgt. Treads destroyed. Map ----- +----------------------------------------------------+ | | | | | | | | | | | ?????????????????????????????????????????????????? | | ?????????????????????????????????????????????????? | | ?????????????????????????????????????????????????? | | ?????????????????????????????????????????????????? | | ?????????????????????????????????????????????????? | | ?????????????????????????????????????????????????? | | ?????????????????????????????????????????????????? | | ?????????????????????????????????????????????????? | | ?????????????????????????????????????????????????? | | ?????????????????????????????????????????????????? | | ?????????????????????????????????????????????????? | | ?????????????????????????????????????????????????? | | ?????????????????????????????????????????????????? | | ?????????????????????????????????????????????????? | | ################????###??####????????????????????? | | # ## # # #???## #### #????????????????????? | | #???## #????????????????????? | | ##?## R #????????????????????? | | # # # ### #????????????????????? | | # ## ###### ### % #????????????????????? | | #???## ### %R @ ##????????????????????? | | #???# #### #####?????????????????????? | | ##???## ##?# #### ## ?????????????? | | # #????## ### #????????????????? | | # # #### #????????????????? | | ## ## ## #????????????????? | | # ##### #? #???? #???????????????? | | # ##???###? ???????????????????? | | "" #####???????? ?????????????????? | | % " ###???????????? ???????????????? | | " ##?????????????? ### ??????????????? | | "" ###??????????????? ##?? ???????????????? | | ###??????????????????#???? ####???????????????? | | " "???????????????????????????#??????????????????? | | ""??????????????????????????????????????????????? | | ""???????????????????????????????????????????????? | | ?????????????????????????????????????????????????? | | ?????????????????????????????????????????????????? | | "#???????????????????????????????????????????????? | | ""???????????????????????????????????????????????? | | # ???????????????????????????????????????????????? | | #????????????????????????????????????????????????? | | #????????????????????????????????????????????????? | | ?????????????????????????????????????????????????? | | ?????????????????????????????????????????????????? | +----------------------------------------------------+ Best States ------------- Heat Dissipation 25 Energy Generation 10 Energy Capacity 250 Matter Stores 300 Matter Capacity 300 Sight Range 16 Terrain Scan Density 10 ECM Strength 1 Propulsion Shielding 33 Evasion (%) 50 Recoil Reduction 2 Authchip Count 3 Item Schematics ----------------- None Robot Schematics ------------------ None Fabricated ------------ Nothing Repaired ---------- Lgt. Treads | 10% | -10/Materials Alien Tech Used ----------------- None Achievements -------------- Novice Programmer Part-time Mechanic Challenges ------------ None Game ------ Seed SupercompositeScanMegatreads Manual? 0 Play Time 00:21:40 Cumulative 1.2 hours Start 2025.08.28 @ 18:41:47 End 2025.08.28 @ 19:50:17 Sessions 1 Manual Loads 0 Difficulty Rogue Special Mode None Game No. 4 Rogue 4 Adventurer 0 Explorer 0 Win Type - Total 0 Types 0/0/0/0/0/0/0/0/0/0 Lore% 0 Gallery% 2 Achievement% 4 Wizard Run 0 Options --------- Layout 1 ASCII 0 Keyboard 0 Movement Numpad Keybinds 0 Fullscreen 0 Font 20/Terminus Map View 50x35 Zoom Use 0% Tactical HUD 1 Map Filters NONE Filters NONE Steam 1 RUN: 9cf9a325-92c9-4e6e-82e0-44b680c76c7d